Workbook

Sheet Rectas aplicadas
B2: Superacions enregistrades 2023
B4: BW1 | C4: horàries > 200% VLE | D4: diàries > 110% VLE | E4: mensuals > VLE | I4: Funcions de calibració
B5: SO2 | C5: 0 | D5: 0 | E5: 0 | M5: Rectes anteriors | P5: Informe en detall d'indisponiblitats i superacions:
B6: NOx | C6: 0 | D6: 0 | E6: 0 | G6: Grup | H6: Contaminant | I6: Pendent | J6: Offset | K6: Informe | L6: Aplicació | M6: Pendent | N6: Offset | P6: BW1 | Q6: Indisponiblitats del 07 al 10/07 pel CO degut a que durant el cap de setmana l'analitzador presenta valors congelats
B7: Par | C7: 0 | D7: 0 | E7: 0 | G7: BW1 | H7: CO | I7: 0.98 | J7: 2.72 | K7: 2022-09-12 | L7: 2022-10-06 | M7: 0.78 | N7: 18.32 | P7: BW2 | Q7: Indisponiblitat el 25/12 pel CO, NOx, SO2 degut a un fall del SAM multiparamètric
B8: CO | C8: 0 | D8: 0 | E8: 0 | G8: BW1 | H8: NOx | I8: 1.12 | J8: 0 | K8: 2022-09-12 | L8: 2022-10-06 | M8: 1.05 | N8: 0 | P8: BW3 | Q8: Indisponiblitat el 09/06 pel CO, NOx, SO2 degut a un fall del SAM multiparamètric
G9: BW1 | H9: SO2 | I9: 1 | J9: -16 | K9: 2022-09-12 | L9: 2022-10-06 | M9: 0.8 | N9: 0 | Q9: Indisponiblitat l' 01/08 pel CO, NOx, SO2 degut a un fall d'alimentación del SAM multiparamètric.
B10: BW2 | C10: horàries > 200% VLE | D10: diàries > 110% VLE | E10: mensuals > VLE | G10: BW1 | H10: Partículas | I10: 521.86 | J10: 0 | K10: 2022-09-12 | L10: 2022-10-06 | M10: 121.33 | N10: 12.93 | P10: TG1 | Q10: Indisponiblitat el 12/07 pel contaminant de Partícules degut a un fall de l'opacímetre durant unes proves per excés de temperatura.
B11: SO2 | C11: 0 | D11: 0 | E11: 0 | G11: BW2 | H11: CO | I11: 1.09 | J11: 0 | K11: 2023-09-11 | L11: 2023-11-06 | M11: 1.13 | N11: 14.32 | Q11: Indisponiblitat del 21/10 a 23/10 pel contaminant de Partícules degut a un fall de l'opacímetre des del divendres fins el dilluns que s'observa l'alarma i es repara.
B12: NOx | C12: 0 | D12: 0 | E12: 0 | G12: BW2 | H12: NOx | I12: 1.11 | J12: 0 | K12: 2023-09-11 | L12: 2023-11-06 | M12: 1.26 | N12: 0 | Q12: Indisponiblitat el 15/11 pel contaminant de Partícules degut a que l'opacímetre es queda funcionant unes hores en valors de 0 degut a problemes amb l'oxigen humit.
B13: Par | C13: 0 | D13: 0 | E13: 0 | G13: BW2 | H13: SO2 | I13: 1.03 | J13: -19.57 | K13: 2022-08-26 | L13: 2022-10-06 | M13: 0.85 | N13: 0 | P13: TG3A
B14: CO | C14: 0 | D14: 0 | E14: 0 | G14: BW2 | H14: Partículas | I14: 544.66 | J14: 0 | K14: 2022-08-26 | L14: 2022-10-06 | M14: 166.69 | N14: 16.56 | P14: TG3B
G15: BW3 | H15: CO | I15: 1.09 | J15: 0 | K15: 2023-09-11 | L15: 2023-11-06 | M15: 1.12 | N15: 5.46 | P15: TG4A | Q15: Superació horaria del 200% del VLE de NOx (90 mg/Nm3) el 06/02 degut a problemes d'injecció d'aigua (flag A).
B16: BW3 | C16: horàries > 200% VLE | D16: diàries > 110% VLE | E16: mensuals > VLE | G16: BW3 | H16: NOx | I16: 0.83 | J16: 0 | K16: 2022-08-25 | L16: 2022-10-06 | M16: 0.86 | N16: 0 | P16: TG4B | Q16: Indisponiblitat el 24/04 pel contaminant de Partícules degut a un fall de l'opacímetre
B17: SO2 | C17: 0 | D17: 0 | E17: 0 | G17: BW3 | H17: SO2 | I17: 0.99 | J17: 5.56 | K17: 2022-08-25 | L17: 2022-10-06 | M17: 1.04 | N17: 0 | Q17: Indisponiblitats del 16 al 21/06 pel contaminant de Partícules degut a un fall de l'opacímetre.
B18: NOx | C18: 0 | D18: 0 | E18: 0 | G18: BW3 | H18: Partículas | I18: 96.91 | J18: 0 | K18: 2022-08-25 | L18: 2022-10-06 | M18: 331.6 | N18: 0 | P18: TG5A | Q18: Superació horaria del 200% del VLE de NOx (90 mg/Nm3) el 26/06.
B19: Par | C19: 0 | D19: 0 | E19: 0 | M19: Rectes anteriors | P19: TG5B
B20: CO | C20: 0 | D20: 0 | E20: 0 | G20: Grup | H20: Contaminant | I20: Pendent | J20: Offset | K20: Informe | L20: Aplicació | M20: Pendent | N20: Offset
G21: TG4A | H21: NOx | I21: 0.96 | J21: 0 | K21: 2022-01-19 | L21: 2021-10-15 | M21: 0.88 | N21: 5.49
B22: TG2 | C22: Hores anuals funcionament < 500 | G22: TG4A | H22: Partícules | I22: 8.71 | J22: 0.18 | K22: 2022-01-19 | L22: 2021-10-15 | M22: 66.66 | N22: 0
G23: TG4A | H23: CO | I23: 1.01 | J23: -0.66 | K23: 2022-01-19 | L23: 2021-10-15 | M23: 0.95 | N23: 5.28
B24: TG1 | C24: horàries > 200% VLE | D24: diàries > 110% VLE | E24: mensuals > VLE | G24: TG4B | H24: NOx | I24: 1.04 | J24: 0 | K24: 2022-01-19 | L24: 2021-10-12 | M24: 0.99 | N24: 0
B25: SO2 | C25: Exenta de mesura | G25: TG4B | H25: Partículas | I25: 23.46 | J25: -1.21 | K25: 2023-04-03 | L25: 2023-06-01 | M25: 4.64 | N25: 0
B26: NOx | C26: 0 | D26: 0 | E26: 0 | G26: TG4B | H26: CO | I26: 1.01 | J26: 0.01 | K26: 2022-01-19 | L26: 2021-10-12 | M26: 1.16 | N26: 3.84
B27: Par | C27: 0 | D27: 0 | E27: 0 | G27: TG5A | H27: NOx | I27: 0.96 | J27: 0 | K27: 2022-01-19 | L27: 2021-10-19 | M27: 1.35 | N27: -33.19
B28: CO | C28: Valors vàlids molt inferiors a VLE | G28: TG5A | H28: CO | I28: 0.96 | J28: 0 | K28: 2022-01-19 | L28: 2021-10-19 | M28: 1.05 | N28: 4.13
B29: TG3 | C29: horàries > 200% VLE | D29: diàries > 110% VLE | E29: mensuals > VLE | G29: TG5A | H29: Partículas | I29: 29.13 | J29: 0 | K29: 2023-04-04 | L29: 2023-05-12 | M29: 49.69 | N29: 0
B30: SO2 | C30: Exenta de mesura | G30: TG5B | H30: NOx | I30: 1 | J30: 0 | K30: 2022-01-19 | L30: 2021-10-20 | M30: 0.79 | N30: 0
B31: NOx | C31: 0 | D31: 0 | E31: 0 | G31: TG5B | H31: CO | I31: 1.21 | J31: 0.04 | K31: 2022-01-19 | L31: 2021-10-20 | M31: 1.15 | N31: 4.3
B32: Par | C32: 0 | D32: 0 | E32: 0 | G32: TG5B | H32: Partículas | I32: 7.15 | J32: 0 | K32: 2022-01-19 | L32: 2021-10-20 | M32: 11.5 | N32: 0
B33: CO | C33: Valors vàlids molt inferiors a VLE | G33: TG3A | H33: SO2 | I33: 0.95 | J33: 3.06 | K33: 2018-04-03 | L33: 2018-04-17
B34: TG4 | C34: horàries > 200% VLE | D34: diàries > 110% VLE | E34: mensuals > VLE | G34: TG3A | H34: NOx | I34: 0.94 | J34: 0 | K34: 2023-03-22 | L34: 2023-06-01 | M34: 1.01 | N34: 0
B35: SO2 | C35: Exenta de mesura | G35: TG3A | H35: Partícules | I35: 0.01 | J35: 0 | K35: 2022-03-31 | L35: 2022-07-18 | M35: 12.92 | N35: 0
B36: NOx | C36: 0 | D36: 0 | E36: 0 | G36: TG3A | H36: CO | I36: 0.94 | J36: 6.87 | K36: 2023-03-22 | L36: 2023-06-01 | M36: 0.94 | N36: 7.46
B37: Par | C37: 0 | D37: 0 | E37: 0 | G37: TG3B | H37: SO2 | I37: 0.96 | J37: 1.85 | K37: 2018-04-03 | L37: 2018-04-17
B38: CO | C38: Valors vàlids molt inferiors a VLE | G38: TG3B | H38: NOx | I38: 1.24 | J38: -16.11 | K38: 2023-04-21 | L38: 2023-05-12 | M38: 0.88 | N38: 7.34
B39: TG5 | C39: horàries > 200% VLE | D39: diàries > 110% VLE | E39: mensuals > VLE | G39: TG3B | H39: Partícules | I39: 14.64 | J39: 0 | K39: 2020-03-30 | L39: 2020-05-20 | M39: 6.25 | N39: 0
B40: SO2 | C40: Exenta de mesura | G40: TG3B | H40: CO | I40: 1 | J40: 0.16 | K40: 2023-04-21 | L40: 2023-05-12 | M40: 0.99 | N40: 1.86
B41: NOx | C41: 1 | D41: 0 | E41: 0 | G41: TG1 | H41: NOx | I41: 0.9135 | J41: 1.0635 | K41: 2022-12-01 | L41: 2023-02-07
B42: Par | C42: 0 | D42: 0 | E42: 0 | G42: TG1 | H42: Partícules | I42: 0.031 | J42: 0.0254 | K42: 2022-12-01 | L42: 2023-02-07
B43: CO | C43: Valors vàlids molt inferiors a VLE | G43: TG1 | H43: CO | I43: 1.0725 | J43: 1.6592 | K43: 2022-12-01 | L43: 2023-02-07
C45: Hores de funcionament 2023
C47: Gener | D47: Febrer | E47: Març | F47: Abril | G47: Maig | H47: Juny | I47: Juliol | J47: Agost | K47: Setembre | L47: Octubre | M47: Novembre | N47: Desembre | O47: 2023
B48: BW-1 | C48: =INDEX([1]!HFUMHONBW1,1,1) -> 0 | D48: =INDEX([1]!HFUMHONBW1,1,2) -> 19.46666667 | E48: =INDEX([1]!HFUMHONBW1,1,3) -> 0 | F48: =INDEX([1]!HFUMHONBW1,1,4) -> 1.35 | G48: =INDEX([1]!HFUMHONBW1,1,5) -> 3.7 | H48: =INDEX([1]!HFUMHONBW1,1,6) -> 3.083333333 | I48: =INDEX([1]!HFUMHONBW1,1,7) -> 697.55 | J48: =INDEX([1]!HFUMHONBW1,1,8) -> 586.7333333 | K48: =INDEX([1]!HFUMHONBW1,1,9) -> 64.25 | L48: =INDEX([1]!HFUMHONBW1,1,10) -> 0 | M48: =INDEX([1]!HFUMHONBW1,1,11) -> 1.656943 | N48: =INDEX([1]!HFUMHONBW1,1,12) -> 93.0875 | O48: =SUM(C48:N48) -> 1470.877776
B49: BW-2 | C49: =INDEX([1]!HFUMHONBW2,1,1) -> 13.18333333 | D49: =INDEX([1]!HFUMHONBW2,1,2) -> 18.03333333 | E49: =INDEX([1]!HFUMHONBW2,1,3) -> 9.4 | F49: =INDEX([1]!HFUMHONBW2,1,4) -> 12.55 | G49: =INDEX([1]!HFUMHONBW2,1,5) -> 0 | H49: =INDEX([1]!HFUMHONBW2,1,6) -> 6.466666667 | I49: =INDEX([1]!HFUMHONBW2,1,7) -> 502.9166667 | J49: =INDEX([1]!HFUMHONBW2,1,8) -> 701.7833333 | K49: =INDEX([1]!HFUMHONBW2,1,9) -> 98.06666667 | L49: =INDEX([1]!HFUMHONBW2,1,10) -> 1.55 | M49: =INDEX([1]!HFUMHONBW2,1,11) -> 0 | N49: =INDEX([1]!HFUMHONBW2,1,12) -> 110.652777 | O49: =SUM(C49:N49) -> 1474.602777
B50: BW-3 | C50: =INDEX([1]!HFUMHONBW3,1,1) -> 0 | D50: =INDEX([1]!HFUMHONBW3,1,2) -> 5.966666667 | E50: =INDEX([1]!HFUMHONBW3,1,3) -> 0 | F50: =INDEX([1]!HFUMHONBW3,1,4) -> 2.75 | G50: =INDEX([1]!HFUMHONBW3,1,5) -> 0 | H50: =INDEX([1]!HFUMHONBW3,1,6) -> 4.233333333 | I50: =INDEX([1]!HFUMHONBW3,1,7) -> 637.6333333 | J50: =INDEX([1]!HFUMHONBW3,1,8) -> 737.1166667 | K50: =INDEX([1]!HFUMHONBW3,1,9) -> 9.966666667 | L50: =INDEX([1]!HFUMHONBW3,1,10) -> 2.166666667 | M50: =INDEX([1]!HFUMHONBW3,1,11) -> 0 | N50: =INDEX([1]!HFUMHONBW3,1,12) -> 76.576389 | O50: =SUM(C50:N50) -> 1476.409722
B51: TG-1 | C51: =INDEX([1]!HFUMHONTG1,1,1) -> 35.88333333 | D51: =INDEX([1]!HFUMHONTG1,1,2) -> 31.1 | E51: =INDEX([1]!HFUMHONTG1,1,3) -> 12.9 | F51: =INDEX([1]!HFUMHONTG1,1,4) -> 4.166666667 | G51: =INDEX([1]!HFUMHONTG1,1,5) -> 0 | H51: =INDEX([1]!HFUMHONTG1,1,6) -> 5.583333333 | I51: =INDEX([1]!HFUMHONTG1,1,7) -> 14.75 | J51: =INDEX([1]!HFUMHONTG1,1,8) -> 5.7 | K51: =INDEX([1]!HFUMHONTG1,1,9) -> 0 | L51: =INDEX([1]!HFUMHONTG1,1,10) -> 569.3833333 | M51: =INDEX([1]!HFUMHONTG1,1,11) -> 646.884723 | N51: =INDEX([1]!HFUMHONTG1,1,12) -> 381.947222 | O51: =SUM(C51:N51) -> 1708.298612
B52: TG-2 | C52: =INDEX([1]!HFUMHONTG2,1,1) -> 0 | D52: =INDEX([1]!HFUMHONTG2,1,2) -> 0 | E52: =INDEX([1]!HFUMHONTG2,1,3) -> 8.916666667 | F52: =INDEX([1]!HFUMHONTG2,1,4) -> 0 | G52: =INDEX([1]!HFUMHONTG2,1,5) -> 13.83333333 | H52: =INDEX([1]!HFUMHONTG2,1,6) -> 5.2 | I52: =INDEX([1]!HFUMHONTG2,1,7) -> 7.75 | J52: =INDEX([1]!HFUMHONTG2,1,8) -> 12.03333333 | K52: =INDEX([1]!HFUMHONTG2,1,9) -> 6.083333333 | L52: =INDEX([1]!HFUMHONTG2,1,10) -> 93.93333333 | M52: =INDEX([1]!HFUMHONTG2,1,11) -> 28.05 | N52: =INDEX([1]!HFUMHONTG2,1,12) -> 6.641665 | O52: =SUM(C52:N52) -> 182.441665
B53: TG-3 | C53: =INDEX([1]!HFUMHONTG3,1,1) -> 299 | D53: =INDEX([1]!HFUMHONTG3,1,2) -> 354.3083333 | E53: =INDEX([1]!HFUMHONTG3,1,3) -> 169.8916667 | F53: =INDEX([1]!HFUMHONTG3,1,4) -> 165.4083333 | G53: =INDEX([1]!HFUMHONTG3,1,5) -> 242.4416667 | H53: =INDEX([1]!HFUMHONTG3,1,6) -> 395.325 | I53: =INDEX([1]!HFUMHONTG3,1,7) -> 241.6166667 | J53: =INDEX([1]!HFUMHONTG3,1,8) -> 238.2583333 | K53: =INDEX([1]!HFUMHONTG3,1,9) -> 376.5 | L53: =INDEX([1]!HFUMHONTG3,1,10) -> 34.24166667 | M53: =INDEX([1]!HFUMHONTG3,1,11) -> 210.9451385 | N53: =INDEX([1]!HFUMHONTG3,1,12) -> 220.928472 | O53: 2948.865277
B54: TG-4 | C54: =INDEX([1]!HFUMHONTG4,1,1) -> 287.0166667 | D54: =INDEX([1]!HFUMHONTG4,1,2) -> 394.9583333 | E54: =INDEX([1]!HFUMHONTG4,1,3) -> 332.075 | F54: =INDEX([1]!HFUMHONTG4,1,4) -> 339.3333333 | G54: =INDEX([1]!HFUMHONTG4,1,5) -> 415.8 | H54: =INDEX([1]!HFUMHONTG4,1,6) -> 582.95 | I54: =INDEX([1]!HFUMHONTG4,1,7) -> 425.8333333 | J54: =INDEX([1]!HFUMHONTG4,1,8) -> 432.725 | K54: =INDEX([1]!HFUMHONTG4,1,9) -> 519.6416667 | L54: =INDEX([1]!HFUMHONTG4,1,10) -> 412.4166667 | M54: =INDEX([1]!HFUMHONTG4,1,11) -> 58.1354155 | N54: =INDEX([1]!HFUMHONTG4,1,12) -> 153.340972 | O54: 4354.226388
B55: TG-5 | C55: =INDEX([1]!HFUMHONTG5,1,1) -> 374.0666667 | D55: =INDEX([1]!HFUMHONTG5,1,2) -> 153.1166667 | E55: =INDEX([1]!HFUMHONTG5,1,3) -> 383.5666667 | F55: =INDEX([1]!HFUMHONTG5,1,4) -> 344.35 | G55: =INDEX([1]!HFUMHONTG5,1,5) -> 369.575 | H55: =INDEX([1]!HFUMHONTG5,1,6) -> 270.4666667 | I55: =INDEX([1]!HFUMHONTG5,1,7) -> 331.9666667 | J55: =INDEX([1]!HFUMHONTG5,1,8) -> 240.6083333 | K55: =INDEX([1]!HFUMHONTG5,1,9) -> 356.0666667 | L55: =INDEX([1]!HFUMHONTG5,1,10) -> 250.4916667 | M55: =INDEX([1]!HFUMHONTG5,1,11) -> 134.4655555 | N55: =INDEX([1]!HFUMHONTG5,1,12) -> 208.654166 | O55: 3417.394721
B58: Hores acumulades TG's
C60: Hores acumulades 20-10-13 - 31-12-22 | D60: Hores acumulades 2023 | E60: Hores restants fins arribar a 10.000 h
B64: TG2 | C64: =2096.18+629.38+150.7+329+191.4 -> 3396.66 | D64: =O52 -> 182.441665 | E64: =10000-(C64+D64) -> 6420.898335
